Cogmind - Beta 15 @@@ ROGUE MODE // 2025.06.11 @ 19:28:53 Player: CheifClapdad Result: Destroyed by G-34 Mercenary with Small Laser Performance ------------- Evolutions (1) 500 Regions Visited (3) 600 Robots Destroyed (64) 320 Value Destroyed (1766) 1766 Prototype IDs (2) 40 Alien Tech Used (0) 0 Bonus (0) 0 TOTAL SCORE: 3226 Bonus ------- None Cogmind --------- Core Integrity 0/400 Matter 241/300 Energy 250/250 System Corruption 1% Temperature Hot (282) Movement Treading (320) Ox2 Location -9/Storage Parts ------- > --- POWER (1) -------- Ion Engine > --- PROPULSION (2) --- Improved Treads > --- UTILITY (2) ------ High-capacity Storage Unit Light Armor Plating > --- WEAPON (4) ------- Heavy Assault Rifle > --- INVENTORY (20) --- Heavy Ion Engine Light Treads Light Treads Light Treads Aluminum Leg Heat Sink High-capacity Storage Unit High-capacity Matter Pod (200) Structural Scanner Visual Processing Unit Medium Laser Medium Laser Peak State ------------ > --- POWER ------------ Heavy Ion Engine > --- PROPULSION ------- Improved Treads Wheel > --- UTILITY ---------- Large Storage Unit Seismic Detector > --- WEAPON ----------- Beam Rifle Assault Rifle Improved Light Cannon Improved Light Cannon > --- INVENTORY -------- Heavy Ion Engine Improved Treads Improved Treads Improved Treads Wheel Compact Wheel Large Storage Unit High-capacity Matter Pod Medium Laser [Rating: 16] Favorites ----------- Power Heavy Ion Engine Engine Heavy Ion Engine Propulsion Improved Treads Treads Improved Treads Wheel Wheel Utility High-capacity Storage Unit Device Seismic Detector Storage High-capacity Storage Unit Protection Light Armor Plating Weapon Improved Light Cannon Energy Gun Beam Rifle Ballistic Gun Assault Rifle Ballistic Cannon Improved Light Cannon Build | -11 -10 -9 -9 ------- Run | Yrd Mat Mat Sto Slots Evolved 2 | . . 2 . Power . | . . . . Propulsion . | . . . . Utility . | . . . . Weapon 2 | . . 2 . Parts Attached 33 | 8 4 7 14 Power 4 | 1 1 . 2 Engine 4 | 1 1 . 2 Core . | . . . . Reactor . | . . . . Propulsion 10 | 3 1 2 4 Treads 6 | 1 1 1 3 Leg . | . . . . Wheel 4 | 2 . 1 1 Hover . | . . . . Flight . | . . . . Utility 7 | 2 1 2 2 Device 2 | 1 . 1 . Storage 3 | 1 1 1 . Processor . | . . . . Hackware . | . . . . Protection 2 | . . . 2 Artifact . | . . . . Weapon 12 | 2 1 3 6 Energy Gun 6 | 1 . 2 3 Energy Cannon . | . . . . Ballistic Gun 4 | 1 . . 3 Ballistic Cannon 2 | . 1 1 . Launcher . | . . . . Special Weapon . | . . . . Impact Weapon . | . . . . Slashing Weapon . | . . . . Piercing Weapon . | . . . . Special Melee Weapon . | . . . . Unidentified Prototypes 2 | . 1 . 1 Parts Lost 23 | . . 6 17 Power 2 | . . . 2 Propulsion 8 | . . 2 6 Utility 3 | . . 1 2 Weapon 10 | . . 3 7 Highest Loss Streak 7 | . . 4 7 To Critical Strikes . | . . . . Average Backups 9 | 2 7 8 11 Power 1 | . 1 1 1 Propulsion 4 | 1 3 4 4 Utility 2 | . . 2 4 Weapon 1 | . 1 . . Tool/Special . | . . . . Unused Backups 15 | 1 2 . 12 Power 2 | . 1 . 1 Propulsion 6 | 1 1 . 4 Utility 5 | . . . 5 Weapon 2 | . . . 2 Tool/Special . | . . . . Average Slot Usage (%) 90 | . 100 93 80 Engine 11 | . 14 11 10 Treads 12 | . 14 10 13 Wheel 10 | . 14 10 7 Device 9 | . 14 9 5 Storage 11 | . 14 11 11 Energy Gun 9 | . . 9 16 Ballistic Gun 12 | . 14 10 13 Ballistic Cannon 11 | . 13 19 . Peak Build Rating 16 | 7 12 16 16 Average Rating 12 | 5 11 14 12 On Entrance 8 | . 7 12 13 Naked Turns . | . . . . Heaviest Build 62 | 15 35 62 58 Greatest Support 43 | 20 23 23 43 Greatest Overweight (x) 12 | 1 3 12 5 Average Overweight (x) 2 | . . 3 3 Largest Inventory Capacity 20 | 8 15 20 20 Average Capacity 15 | 7 8 17 20 Most Carried 15 | 5 9 12 15 Average Carried 9 | 2 7 8 11 Final Capacity 20 | 8 15 20 20 Final Carried 12 | 3 9 9 12 Class Distribution -------------------- 36% | Gunner 33% | Mutant 16% | Scavenger-Gunner 12% | Scavenger-Mutant Dominant Class ---------------- Mutant | -10/Materials Gunner | -9/Materials Scavenger-Gunner | -9/Storage Resources | -11 -10 -9 -9 ----------- Run | Yrd Mat Mat Sto Matter Collected 1438 | 298 83 736 321 Remotely . | . . . . Salvage Created 2225 | 84 100 879 1162 Parts 144 | 2 10 58 74 Haulers Intercepted 1 | . . . 1 Recyclers Shooed 4 | . . 1 3 Parts Field Recycled . | . . . . Retrieved Matter . | . . . . Parts Self-Destructed . | . . . . Prevented . | . . . . Kills | -11 -10 -9 -9 ------- Run | Yrd Mat Mat Sto Combat Hostiles Destroyed 53 | . 5 21 27 Guns 35 | . 2 6 27 Cannons 18 | . 3 15 . Classes Destroyed 11 | 2 3 4 2 Worker 3 | . 1 2 . Builder 2 | . . 2 . Tunneler 1 | 1 . . . Hauler 1 | . . . 1 Recycler 3 | 1 . 1 1 Watcher 1 | . . 1 . Swarmer 10 | . 3 2 5 Grunt 31 | . 2 13 16 Brawler 1 | . . 1 . Duelist 1 | . . . 1 Sentry 10 | . . 5 5 Best Kill Streak 8 | 1 5 8 6 Combat Bots Only 6 | . 5 5 6 Max Kills in Single Turn 2 | 1 1 2 2 Gunslinging 1 | . . . 1 Exploded . | . . . . Melee . | . . . . Uniques/NPCs Destroyed . | . . . . Combat | -11 -10 -9 -9 -------- Run | Yrd Mat Mat Sto Hostile Shots Fired 297 | . 11 84 202 Missed 82 | . 4 29 49 Hits 215 | . 7 55 153 Melee 2 | . . . 2 Projectile 213 | . 7 55 151 Critical Strikes 5 | . . 2 3 Damage Taken 2564 | . 58 681 1825 Core 429 | . 28 83 318 Absorbed by Shields . | . . . . Core Remaining (%) 94 | 100 88 . . Volleys Fired 140 | 6 8 46 80 Largest 4 | 2 2 4 4 Hottest 169 | 70 53 146 169 Shots Fired 365 | 12 16 148 189 Gun 279 | 12 8 70 189 Cannon 86 | . 8 78 . Launcher . | . . . . Special . | . . . . Kinetic 232 | 6 16 119 91 Thermal 112 | 6 . 29 77 Explosive . | . . . . Electromagnetic 21 | . . . 21 Robot Hit Streak 11 | 4 6 7 11 Robot Miss Streak 9 | 1 2 9 5 Penetration Max . | . . . . Secondary Targets 6 | . . . 6 Max Gunslinging Chain 1 | . . . 1 Shots Hit Robots 213 | 7 8 74 124 Core Hits 93 | 3 7 35 48 Critical Kills . | . . . . Critical Parts Destroyed . | . . . . Critical Strikes 5 | . . 4 1 Burn 3 | . . 2 1 Blast 2 | . . 2 . Melee Attacks . | . . . . Impact . | . . . . Slashing . | . . . . Piercing . | . . . . Sneak Attacks . | . . . . Combat Hostiles . | . . . . Follow-up Attacks . | . . . . Damage Inflicted 3586 | 87 142 1410 1947 Guns 2557 | 87 54 572 1844 Cannons 924 | . 86 838 . Explosions 103 | . . . 103 Melee . | . . . . Ramming 2 | . 2 . . Kinetic 2200 | 50 140 1152 858 Thermal 1128 | 37 . 258 833 Explosive . | . . . . Electromagnetic 256 | . . . 256 Impact . | . . . . Slashing . | . . . . Piercing . | . . . . Highest Corruption 1 | . . . 1 Average Corruption 1 | . . . 1 Corruption Purged . | . . . . Corruption Blocked . | . . . . Overload Shots . | . . . . Overflow Damage 3 | . . 3 . Projectiles 3 | . . 3 . Explosions . | . . . . Melee . | . . . . Knockbacks 3 | . . 3 . Impact . | . . . . Kinetic 3 | . . 3 . Secondary . | . . . . Self-Inflicted Damage 66 | . . . 66 Shots 2 | . . . 2 Rammed . | . . . . Targets Rammed 1 | . 1 . . Kicked . | . . . . Crushed 1 | . 1 . . Highest Temperature 378 | 36 4 378 302 Average Temperature 97 | 16 3 97 106 Received Heat Transfer 882 | . 6 267 609 Effects 2 | . . 1 1 Energy Bleed 2 | . . 1 1 Siege Activations . | . . . . Martial Activations . | . . . . Shielding Activations . | . . . . Robots Disrupted . | . . . . Combat Hostiles . | . . . . Robots Corrupted . | . . . . Combat Hostiles . | . . . . Parts Fried . | . . . . Impact Corruptions . | . . . . Robots Melted . | . . . . Combat Hostiles . | . . . . Parts Melted 3 | . . 1 2 Heat Transferred 3068 | 111 . 802 2155 Parts Sabotaged . | . . . . Parts Stolen . | . . . . Parts Stripped . | . . . . Power Chain Reactions 2 | . . . 2 Alert | -11 -10 -9 -9 ------- Run | Yrd Mat Mat Sto Maximum Alert Level 1 | . . 1 1 Low Security (%) 62 | 100 100 57 30 Level 1 37 | . . 42 69 Level 2 . | . . . . Level 3 . | . . . . Level 4 . | . . . . Level 5 . | . . . . High Security . | . . . . Max Security . | . . . . Peak Influence 352 | 5 141 279 352 Initial 94 | . . 5 94 Average 134 | 1 44 146 214 Influence Increases 1464 | 10 171 591 692 Destroy 0b10 Robot/C 1060 | . 100 420 540 Destroy 0b10 Robot/NC 55 | 10 5 30 10 Destroy Leader 244 | . 20 102 122 Successful Hack 24 | . . 17 7 Disable Machine 15 | . 15 . . Destroy Structure 21 | . 1 7 13 Lose Combat Pursuer 45 | . 30 15 . Influence Decreases 1142 | 10 156 382 594 Entered New Map 140 | . . 10 130 Time Decay 772 | 10 156 312 294 Lost Part 230 | . . 60 170 Squads Dispatched 12 | . . 4 8 Investigation 6 | . . 4 2 Extermination . | . . . . Reinforcement 1 | . . . 1 Assault . | . . . . Garrison 5 | . . . 5 Intercept . | . . . . Searches Triggered . | . . . . Construction Impeded . | . . . . Haulers Reinforced . | . . . . Active Scanning Responses . | . . . . Cargo Convoy Interrupts . | . . . . Stealth | -11 -10 -9 -9 --------- Run | Yrd Mat Mat Sto Distress Signals 5 | . 1 2 2 Communications Jammed . | . . . . Distress Signals . | . . . . Times Spotted 84 | . 13 30 41 Peak Tracking Total 7 | . 7 4 7 Tactical Retreats 2 | . 1 1 . Traps | -11 -10 -9 -9 ------- Run | Yrd Mat Mat Sto Traps Triggered 7 | . . 6 1 Indirectly . | . . . . Trap Hack Attempts . | . . . . Triggered . | . . . . Disarmed . | . . . . Reprogrammed . | . . . . Reused . | . . . . Traps Extracted . | . . . . Installed . | . . . . Triggered . | . . . . Machines | -11 -10 -9 -9 ---------- Run | Yrd Mat Mat Sto Machines Disabled 1 | . 1 . . Max in Single Turn 1 | . 1 . . Machines Repaired . | . . . . Machines Dismantled . | . . . . Machines Sabotaged . | . . . . Overloaded Fab Kills . | . . . . Hacking | -11 -10 -9 -9 --------- Run | Yrd Mat Mat Sto Machines Accessed 4 | . . 2 2 Terminals 3 | . . 2 1 Fabricators . | . . . . Repair Stations . | . . . . Recycling Units . | . . . . Scanalyzers . | . . . . Garrison Access 1 | . . . 1 Total Hacks 10 | . . 6 4 Successful 3 | . . 2 1 Failed 7 | . . 4 3 Catastrophic 3 | . . 1 2 Database Lockouts . | . . . . Manual 6 | . . 6 . Terminals 8 | . . 6 2 Fabricators . | . . . . Repair Stations . | . . . . Recycling Units . | . . . . Scanalyzers . | . . . . Garrison Access 2 | . . . 2 Terminal Hacks 1 | . . . 1 Branch Access Points 1 | . . . 1 Fabricator Hacks . | . . . . Repair Station Hacks . | . . . . Recycling Unit Hacks . | . . . . Scanalyzer . | . . . . Garrison Access Hacks . | . . . . Unauthorized Hacks 2 | . . 2 . Terminals 2 | . . 2 . Botnet 2 | . . 2 . Fabricators . | . . . . Repair Stations . | . . . . Recycling Units . | . . . . Scanalyzers . | . . . . Garrison Access . | . . . . Data Cores Recovered . | . . . . Used . | . . . . Hacking Detections 4 | . . 2 2 Full Trace Events 4 | . . 2 2 Feedback Events 1 | . . . 1 Corruption 1 | . . . 1 Feedback Blocked . | . . . . Robot Schematics Acquired . | . . . . Robots Built . | . . . . Authchips . | . . . . Time . | . . . . Total Robot Build Rating . | . . . . Part Schematics Acquired . | . . . . Parts Built . | . . . . Authchips . | . . . . Time . | . . . . Total Part Build Rating . | . . . . Parts Repaired . | . . . . Time . | . . . . Parts Recycled . | . . . . Recycled Matter . | . . . . Retrieved Matter . | . . . . Retrieved Components . | . . . . Parts Scanalyzed . | . . . . Part Schematics Acquired . | . . . . Parts Damaged . | . . . . Bothacking | -11 -10 -9 -9 ------------ Run | Yrd Mat Mat Sto Used RIF Installer . | . . . . Robots Hacked . | . . . . Non-combat . | . . . . Combat . | . . . . Robot Hacks Applied . | . . . . Relay Couplers Released . | . . . . Fabnet Peak Effective % . | . . . . Robots Rewired . | . . . . Allies Hacked . | . . . . Hacks Repelled . | . . . . Allies | -11 -10 -9 -9 -------- Run | Yrd Mat Mat Sto Total Allies . | . . . . Largest Group . | . . . . Highest-Rated Group . | . . . . Highest-Rated Ally . | . . . . Total Orders . | . . . . Ally Attacks . | . . . . Total Damage . | . . . . Kills . | . . . . Allies Corrupted . | . . . . Allies Melted . | . . . . Intel | -11 -10 -9 -9 ------- Run | Yrd Mat Mat Sto Active Infowar (turns) 833 | 33 527 273 . Seismic 833 | 33 527 273 . Robot Analysis Total . | . . . . Derelict Logs Recovered . | . . . . Drone Launches . | . . . . Drone Recoveries . | . . . . Exploration | -11 -10 -9 -9 ------------- Run | Yrd Mat Mat Sto Turns Passed 2067 | 115 527 766 659 Spaces Moved 1095 | 87 465 324 219 Core 4 | 3 . 1 . Treads 201 | 2 55 96 48 Legs . | . . . . Wheels 890 | 82 410 227 171 Hover . | . . . . Flight . | . . . . Fastest Speed 50 | 50 95 125 130 Average Speed 139 | 92 103 182 171 Slowest Speed 650 | 160 160 650 240 Overloaded Moves . | . . . . Propulsion Burnouts . | . . . . Robots Hopped . | . . . . Potential Cave-ins . | . . . . Cave-ins Triggered . | . . . . Exploration Rate (%) 31 | 5 67 28 25 Regions Visited 3 Branch Regions 1 Pre-discovered Areas . | . . . . Known Exits Taken . | . . . . Unknown Exits Taken 3 | 1 1 1 . Scrap Searched . | . . . . Spaces Dug . | . . . . Terrain Destroyed 13 | . . 5 8 Melee . | . . . . Projectile 5 | . . 5 . AOE 8 | . . . 8 Terrain Rammed . | . . . . Walls Destroyed . | . . . . Machines Disabled . | . . . . Actions | -11 -10 -9 -9 --------- Run | Yrd Mat Mat Sto Total 1336 | 107 496 392 341 Wait 17 | . 6 . 11 Move 1092 | 86 464 323 219 Hop . | . . . . Pick Up 35 | 6 8 6 15 Fast Attach 18 | 5 1 9 3 Attach 18 | 2 . 4 12 Detach . | . . . . Swap 5 | 1 3 1 . Drop 10 | 1 5 3 1 Fire 140 | 6 8 46 80 Melee . | . . . . Ram . | . . . . Kick . | . . . . Crush 1 | . 1 . . Escape Stasis . | . . . . Rewire . | . . . . Trap . | . . . . Miscellaneous . | . . . . Route ------- -11/Scrapyard -10/Materials (discovered 2 exits: *Mat x2) -9/Materials (discovered 3 exits: [*Mat] / [*Min] / *Sto) -9/Storage (discovered 1 exit: Rec) History --------- Turn | Location | Event 9 | -11/Scrapyard | Discovered new exit (range 15) 116 | -11/Scrapyard | Entered Materials 315 | -10/Materials | Build established: Mutant 456 | -10/Materials | Discovered new exit (range 7) 563 | -10/Materials | Discovered new exit (range 12) 643 | -10/Materials | Entered another Materials area 643 | -9/Materials | Evolved 2 slots: Weapon x2 928 | -9/Materials | Build established: Gunner 1068 | -9/Materials | Discovered new exit (range 10) 1198 | -9/Materials | Discovered new exit (range 15) 1347 | -9/Materials | Discovered new exit (range 15) 1400 | -9/Materials | Lost 4 parts (2n2w) 1409 | -9/Materials | Entered Storage 1524 | -9/Storage | Garrison activated, responded to threat 1702 | -9/Storage | Garrison activated, responded to threat 1736 | -9/Storage | Core integrity fell below 50% 1774 | -9/Storage | Lost 7 parts (1p3n1u2w) 1961 | -9/Storage | Lost 3 parts (1p1n1w) 2014 | -9/Storage | Identified exit to Recycling 2040 | -9/Storage | Garrison activated, responded to threat 2044 | -9/Storage | Core integrity fell below 20% 2068 | -9/Storage | Destroyed by G-34 Mercenary with Small Laser Last Messages --------------- 02033_ Y-45 Defender destroyed. 02035_ K-01 Serf collects debris. 02040_ G-34 Mercenary calls for garrison reinforcements. 02040_ ALERT: Activating Garrison Access S001. 02042_ K-01 Serf collects debris. 02050_ Hvy. Assault Rifle destroyed. 02050_ G-34 Mercenary destroyed. 02050_ Switching to secondary target: G-34 Mercenary. 02053_ G-34 Mercenary destroyed. 02053_ Switching to secondary target: G-34 Mercenary. 02053_ G-34 Mercenary destroyed. 02054_ K-01 Serf collects debris. 02062_ G-34 Mercenary destroyed. 02063_ K-01 Serf collects debris. 02063_ Imp. EM Shotgun destroyed. 02064_ Com. Wheel destroyed. 02066_ Imp. Treads destroyed. Map ----- +----------------------------------------------------+ | | | | | | | | | | | | | | | | | ??????????????????????????????????????????? | | ??????????????????????????????????????????? | | ??????????????????????????????????????????? | | ??????????????????????????????????????????? | | ??????????????????????????????????????????? | | ??????????????????????????????????????????? | | ??????????????????????????????????????????? | | ??????????????????????????????????????????? | | ??????????????????????????????????????????? | | ??????????????????????????????????????????? | | ??????????????????????????????????????????? | | ??????????????????????????????????????????? | | ??????????????????????????????????????????? | | ??????????????????????????????????????????? | | ??????????????????????????????????????????? | | ?????????????#######??#######?????????????? | | ????????????##;;;;;####!= ############### | | ????????????# = @sssuw= | | ????????????# =%!k####[!T | | ????????????+ g ##??# % | | ????????????# g ????# ####/#########+ | | ????????????# *! ????#######???? ??# | | ????????????##=%[#????????????????? ## """ | | ?????????????# = ???????????????????## "G % | | ?????????????# ???????????????????#" """ | | ?????????????# ???????????????????#T | | ?????????????# ????????????????????#" | | ?????????????# ????????????????????## | | ?????????????# ?????????????????????# | | ?????????????# ??????????????????????###### | | ?????????????# ???????????????????????????? | | ?????????????? ???????????????????????????? | | ??????????????????????????????????????????? | | ??????????????????????????????????????????? | | ??????????????????????????????????????????? | | ??????????????????????????????????????????? | | ??????????????????????????????????????????? | | ??????????????????????????????????????????? | | ??????????????????????????????????????????? | | ??????????????????????????????????????????? | | ??????????????????????????????????????????? | | ??????????????????????????????????????????? | +----------------------------------------------------+ Best States ------------- Heat Dissipation 38 Energy Generation 14 Energy Capacity 280 Matter Stores 300 Matter Capacity 300 Sight Range 16 Terrain Scan Density 10 Armor Coverage 150 Evasion (%) 44 Recoil Reduction 2 Item Schematics ----------------- None Robot Schematics ------------------ None Fabricated ------------ Nothing Repaired ---------- Nothing Alien Tech Used ----------------- None Achievements -------------- None Challenges ------------ None Game ------ Seed OpticalGrenadePenetrator Manual? 0 Play Time 00:16:01 Cumulative 72.6 hours Start 2025.06.11 @ 19:14:46 End 2025.06.11 @ 19:28:53 Sessions 1 Manual Loads 0 Difficulty Rogue Special Mode None Game No. 97 Rogue 97 Adventurer 0 Explorer 0 Win Type - Total 1 Types 1/0/0/0/0/0/0/0/0/0 Lore% 32 Gallery% 45 Achievement% 39 Wizard Run 0 Options --------- Layout 1 ASCII 0 Keyboard 0 Movement Arrows Keybinds 0 Fullscreen 1 Font 24/Smallcaps Map View 50x35 Zoom Use 0% Tactical HUD 1 Map Filters NONE Filters NONE Steam X RUN: 5a7ab85b-20fe-455f-a7ac-c41685b35972